{"text_format":"1","workbook":"xlsx","n_sheets":2,"sheets":["デッキ分布集計シート","集計ソート用"],"not_rendered":{"charts":1,"images":0,"macros":1,"external_links":0,"defined_names":1,"comments":0,"pivot_tables":0},"unopened":[],"bounds":{"document_bytes":16777216,"sheet_cells":100000,"rows_first":2000,"rows_last":500,"rows_between":2000,"halvings":0,"cell_chars":16384,"cell_head_chars":4096},"cells_cut":0,"cells_raw":0,"read":"whole","date_system":"1900"}

{"sheet":"デッキ分布集計シート","index":0,"n_rows":35,"n_cols":9,"rows_kept":35,"cut":false,"hidden":false,"merged":[[0,1,0,9],[34,1,34,9],[24,1,24,9],[2,1,2,9],[1,2,1,3]]}
[null,"デッキ分布集計シート（サンプル）"]
[null,"大会名","じゅらっく杯"]
[null,{"$f":"\"予選デッキ分布（参加者数 \"&SUM(D5:D23,I5:I22)&\" 名）\"","v":"予選デッキ分布（参加者数 87 名）"}]
[null,"デッキタイプ","派生・備考","数",null,null,"デッキタイプ","派生・備考","数"]
[null,"じゅらっく",null,15,null,null,"コアキメイル","ダントツ人気",50]
[null,"ねくろす",null,4]
[null,null,null,null,null,null,"しゃどーる","純４、AF３",7]
[null,"おじゃま",null,1]
[null,null,null,null,null,null,"くりふぉーと",null,5]
[null,"ひーろー",null,2]
[null,null,null,null,null,null,"ヴぉるかにっく",null,1]
[null,"じぇむないと",null,2]
[]
[]
[]
[]
[]
[]
[]
[]
[]
[]
[null,null,null,null,null,null,"計",null,{"$f":"SUM(D5:D23,I5:I22)","v":87}]
[]
[null,{"$f":"\"決勝進出デッキ分布(計 \"&SUM(D27:D34,I27:I33)&\" 名)\"","v":"決勝進出デッキ分布(計 16 名)"}]
[null,"デッキタイプ","派生・備考","数",null,null,"デッキタイプ","派生・備考","数"]
[null,"ジュラック",null,10,null,null,"コアキメイル",null,1]
[null,"ひーろー",null,1]
[null,null,null,null,null,null,"くりふぉーと",null,2]
[null,"しゃどーる",null,1]
[null,null,null,null,null,null,"おじゃま",null,1]
[]
[]
[null,null,null,null,null,null,"計",null,{"$f":"SUM(D27:D34,I27:I33)","v":16}]
[null,"Copyright © 2015  じゅらっくらっく。"]

{"sheet":"集計ソート用","index":1,"n_rows":41,"n_cols":7,"rows_kept":41,"cut":false,"hidden":false,"merged":[[0,0,0,4]]}
[{"$f":"デッキ分布集計シート!C2& \"   予選デッキ分布\"","v":"じゅらっく杯   予選デッキ分布"}]
[null,"デッキタイプ","派生・備考","数","割合"]
[1,"コアキメイル","ダントツ人気",50,{"$f":"D3/$G$22","v":0.57471264367816088}]
[2,"じゅらっく",null,15,0.17241379310344829]
[3,"しゃどーる","純４、AF３",7,8.0459770114942528E-2]
[4,"くりふぉーと",null,5,5.7471264367816091E-2]
[5,"ねくろす",null,4,4.5977011494252873E-2]
[6,"ひーろー",null,2,2.2988505747126436E-2]
[7,"じぇむないと",null,2,2.2988505747126436E-2]
[8,"おじゃま",null,1,1.1494252873563218E-2]
[9,"ヴぉるかにっく",null,1,1.1494252873563218E-2]
[10,null,null,null,0]
[11,null,null,null,0]
[12,null,null,null,0]
[13,null,null,null,0]
[14,null,null,null,0]
[15,null,null,null,0]
[16,null,null,null,0]
[17,null,null,null,0]
[18,null,null,null,0]
[19,null,null,null,0]
[20,null,null,null,0,"計",{"$f":"SUM(D3:D39)","v":87}]
[21,null,null,null,0]
[22,null,null,null,0,null,"表やグラフをスクリーンショットで画像化し、web上へのアップロードなどにご活用ください。"]
[23,null,null,null,0]
[24,null,null,null,0]
[25,null,null,null,0]
[26,null,null,null,0]
[27,null,null,null,0]
[28,null,null,null,0]
[29,null,null,null,0]
[30,null,null,null,0]
[31,null,null,null,0]
[32,null,null,null,0]
[33,null,null,null,0]
[34,null,null,null,0]
[35,null,null,null,0]
[36,null,null,null,0]
[37,null,null,null,0]
[null,"その他",null,{"$f":"SUM(D9:D39)","v":4}]
[null,"(「その他」群はデッキ数が上から７番目以降のものを統合しています)"]